lending/lending_fUSD_20251218
["ID","MTS","AMOUNT","RATE_DAILY","PERIOD"]
[399039897,1766087402393,-382.97941387,0.00016782,2]
[399039898,1766087404160,-300.0,0.00016782,2]
[399039899,1766087407497,-200.0,0.00016782,2]
[399039900,1766087409069,-300.0,0.00016782,2]
[399039901,1766087410736,-17.02058613,0.00016782,2]
[399039902,1766087410758,-300.0,0.00016782,2]
[399039903,1766087410784,-254.12359783,0.00016782,2]
[399039904,1766087414199,465.95,0.00016167,2]
[399039905,1766087414225,-36.87640217,0.00016782,2]
[399039906,1766087414246,-235.77137549,0.00016783,2]
[399039907,1766087414273,-273.96102016,0.00016783,2]
[399039908,1766087415911,-303.17,0.00016783,2]
[399039909,1766087417963,-152.65,0.00016783,2]
[399039910,1766087420063,-151.43,0.00016783,2]
[399039911,1766087429974,-301.01270282,0.00016691,2]
[399039912,1766087429996,-48.26777559,0.00016691,2]
[399039925,1766087431500,-461.17361602,0.00016691,2]
[399039926,1766087431512,-394.17718249,0.00016691,2]
[399039927,1766087431557,-6815.12586,0.00016691,2]
[399039928,1766087431568,-419.9959569,0.00016691,2]
[399039929,1766087431578,-2904.90298598,0.00016715,2]
[399039930,1766087431587,-151.0,0.0001678,2]
[399039931,1766087431596,-151.0,0.0001678,2]
[399039932,1766087431605,-29783.69638061,0.00016783,2]
[399039933,1766087431617,-2430.08348929,0.00016783,2]
[399039934,1766087431633,-1000.99,0.00016783,2]
[399039935,1766087431644,-527.69098567,0.00016783,2]
[399039936,1766087431655,-407.74984699,0.00016783,2]
[399039937,1766087431666,-1629.64612278,0.00016783,2]
[399039938,1766087431682,-6381.625,0.00016783,2]
[399039939,1766087431695,-1126.55618914,0.00016783,2]
[399039940,1766087431720,-646.62018074,0.00016783,2]
[399039941,1766087431730,-213573.66211887,0.00016783,2]
[399039942,1766087431741,-30312.12704157,0.00016783,2]
[399039943,1766087431751,-32867.20720577,0.00016783,2]
[399039944,1766087431762,-18177.92628186,0.00016783,2]
[399039945,1766087431777,-217348.55682988,0.00016783,2]
[399039947,1766087431791,-3622.27346408,0.00016783,2]
[399039970,1766087437555,-38698.67020959,0.00016783,2]
[399039971,1766087437567,-1404.26556855,0.00016783,2]
[399039972,1766087437578,-828.00660449,0.00016783,2]
[399039973,1766087437589,-20724.17226292,0.00016783,2]
[399039974,1766087437600,-658.47843359,0.00016783,2]
[399039975,1766087437611,-11914.99999996,0.00016783,2]
[399039976,1766087437645,-639.8168967,0.00016783,2]
[399039977,1766087437965,-250443.41874234,0.00016783,2]
[399039978,1766087437974,-159.04037892,0.00016791,2]
[399039979,1766087437984,-1200.0,0.00016792,2]
[399039980,1766087437993,-6028.45292654,0.00016793,2]
[399039981,1766087438002,-736.11091029,0.00016793,2]
[399039982,1766087438012,-301.0127028,0.00016796,2]
[399039983,1766087438022,-324.0,0.00016882,2]
[399039985,1766087438032,-200.0,0.00016883,2]
[399039986,1766087438043,-287.16817775,0.00016883,2]
[399039987,1766087438052,-500.0,0.00016883,2]
[399039988,1766087438062,-151.0,0.00016883,2]
[399039989,1766087438072,-151.0,0.00016883,2]
[399039991,1766087438081,-151.0,0.00016883,2]
[399039993,1766087438091,-151.0,0.00016883,2]
[399039995,1766087438100,-151.0,0.00016883,2]
[399039997,1766087438111,-151.0,0.00016883,2]
[399039999,1766087438120,-151.0,0.00016883,2]
[399040001,1766087438130,-151.0,0.00016883,2]
[399040003,1766087438140,-151.0,0.00016883,2]
[399040005,1766087438151,-151.0,0.00016883,2]
[399040007,1766087438162,-151.0,0.00016883,2]
[399040009,1766087438174,-151.0,0.00016883,2]
[399040011,1766087438185,-151.0,0.00016883,2]
[399040013,1766087438195,-151.0,0.00016883,2]
[399040015,1766087438204,-151.0,0.00016883,2]
[399040017,1766087438214,-154.13670092,0.00016883,2]
[399040019,1766087438224,-151.0,0.00016883,2]
[399040022,1766087438233,-49505.5299791,0.00016883,2]
[399040024,1766087438243,-3178.2282649,0.00016883,2]
[399040027,1766087438252,-958.3,0.00016883,2]
[399040029,1766087438262,-6321.7418494,0.00016886,2]
[399040031,1766087438272,-1000.0,0.00016892,2]
[399040033,1766087438293,-500.0,0.00016892,2]
[399040035,1766087438302,-740.43554898,0.00016892,2]
[399040036,1766087438313,-740.43554898,0.00016892,2]
[399040037,1766087438323,-740.43554898,0.00016892,2]
[399040038,1766087438334,-740.43554898,0.00016892,2]
[399040039,1766087438343,-740.43554898,0.00016892,2]
[399040040,1766087438362,-740.43554898,0.00016892,2]
[399040041,1766087438379,-740.43554898,0.00016892,2]
[399040042,1766087438388,-740.43554898,0.00016892,2]
[399040043,1766087438398,-740.43554898,0.00016892,2]
[399040044,1766087438408,-740.43554898,0.00016892,2]
[399040045,1766087438417,-740.43554898,0.00016892,2]
[399040046,1766087438427,-740.43554898,0.00016892,2]
[399040047,1766087438437,-740.43554898,0.00016892,2]
[399040048,1766087438446,-740.43554898,0.00016892,2]
[399040049,1766087438455,-740.43554898,0.00016892,2]
[399040050,1766087438465,-740.43554898,0.00016892,2]
[399040051,1766087438474,-740.43554898,0.00016892,2]
[399040052,1766087438484,-740.43554898,0.00016892,2]
[399040053,1766087438493,-740.43554898,0.00016892,2]
[399040054,1766087438503,-740.43554898,0.00016892,2]
[399040055,1766087438512,-740.43554898,0.00016892,2]
[399040056,1766087438522,-740.43554898,0.00016892,2]
[399040057,1766087438532,-740.43554898,0.00016892,2]
[399040058,1766087438544,-740.43554898,0.00016892,2]
[399040059,1766087438554,-740.43554898,0.00016892,2]
[399040060,1766087438564,-740.43554898,0.00016892,2]
[399040061,1766087438573,-740.43554898,0.00016892,2]
[399040062,1766087438583,-740.43554898,0.00016892,2]
[399040063,1766087438593,-740.43554898,0.00016892,2]
[399040064,1766087438603,-740.43554898,0.00016892,2]
[399040065,1766087438612,-740.43554898,0.00016892,2]
[399040066,1766087438622,-740.43554898,0.00016892,2]
[399040067,1766087438632,-740.43554898,0.00016892,2]
[399040068,1766087438642,-740.43554898,0.00016892,2]
[399040069,1766087438652,-740.43554898,0.00016892,2]
[399040070,1766087438662,-740.43554898,0.00016892,2]
[399040071,1766087438672,-740.43554898,0.00016892,2]
[399040072,1766087438682,-740.43554898,0.00016892,2]
[399040073,1766087438692,-740.43554898,0.00016892,2]
[399040074,1766087438701,-740.43554898,0.00016892,2]
[399040075,1766087438711,-740.43554898,0.00016892,2]
[399040076,1766087438721,-740.43554898,0.00016892,2]
[399040077,1766087438731,-740.43554898,0.00016892,2]
[399040078,1766087438740,-740.43554898,0.00016892,2]
[399040079,1766087438749,-740.43554898,0.00016892,2]
[399040080,1766087438759,-740.43554898,0.00016892,2]
[399040081,1766087438768,-740.43554898,0.00016892,2]
[399040082,1766087438778,-740.43554898,0.00016892,2]
[399040083,1766087438794,-740.43554898,0.00016892,2]
[399040084,1766087438804,-740.43554898,0.00016892,2]
[399040085,1766087438814,-740.43554898,0.00016892,2]
[399040086,1766087438825,-740.43554898,0.00016892,2]
[399040087,1766087438835,-740.43554898,0.00016892,2]
[399040088,1766087438845,-740.43554898,0.00016892,2]
[399040089,1766087438856,-740.43554899,0.00016892,2]
[399040090,1766087438866,-740.43554899,0.00016892,2]
[399040091,1766087438877,-740.43554899,0.00016892,2]
[399040092,1766087438888,-740.43554899,0.00016892,2]
[399040093,1766087438898,-740.43554899,0.00016892,2]
[399040094,1766087438910,-740.43554899,0.00016892,2]
[399040095,1766087438920,-740.43554899,0.00016892,2]
[399040096,1766087438930,-740.43554899,0.00016892,2]
[399040097,1766087438941,-740.43554899,0.00016892,2]
[399040098,1766087438951,-740.43554899,0.00016892,2]
[399040099,1766087438961,-740.43554899,0.00016892,2]
[399040100,1766087438971,-740.43554899,0.00016892,2]
[399040101,1766087438980,-740.43554899,0.00016892,2]
[399040102,1766087438990,-740.43554899,0.00016892,2]
[399040103,1766087439000,-740.43554899,0.00016892,2]
[399040104,1766087439010,-740.43554899,0.00016892,2]
[399040105,1766087439019,-740.43554899,0.00016892,2]
[399040106,1766087439029,-740.43554899,0.00016892,2]
[399040107,1766087439040,-740.43554899,0.00016892,2]
[399040108,1766087439050,-740.43554899,0.00016892,2]
[399040109,1766087439060,-740.43554899,0.00016892,2]
[399040110,1766087439070,-740.43554899,0.00016892,2]
[399040111,1766087439081,-740.43554899,0.00016892,2]
[399040112,1766087439091,-740.43554899,0.00016892,2]
[399040113,1766087439100,-740.43554899,0.00016892,2]
[399040114,1766087439110,-740.43554899,0.00016892,2]
[399040115,1766087439120,-740.43554899,0.00016892,2]
[399040116,1766087439129,-740.43554899,0.00016892,2]
[399040117,1766087439139,-740.43554899,0.00016892,2]
[399040118,1766087439148,-740.43554899,0.00016892,2]
[399040119,1766087439158,-740.43554899,0.00016892,2]
[399040120,1766087439168,-740.43554899,0.00016892,2]
[399040121,1766087439177,-740.43554898,0.00016892,2]
[399040122,1766087439187,-740.43554898,0.00016892,2]
[399040123,1766087439196,-740.43554898,0.00016892,2]
[399040124,1766087439206,-500.0,0.00016892,2]
[399040125,1766087439216,-500.0,0.00016892,2]
[399040126,1766087439225,-500.0,0.00016892,2]
[399040127,1766087439234,-500.0,0.00016892,2]
[399040128,1766087439244,-500.0,0.00016892,2]
[399040129,1766087439253,-500.0,0.00016892,2]
[399040130,1766087439263,-181.10179801,0.00016892,2]
[399040131,1766087439272,-500.0,0.00016892,2]
[399040132,1766087439281,-500.0,0.00016892,2]
[399040133,1766087439291,-189.16147687,0.00016892,2]
[399040134,1766087439300,-500.0,0.00016892,2]
[399040135,1766087439310,-161.16108283,0.00016892,2]
[399040136,1766087439319,-740.43554896,0.00016892,2]
[399040137,1766087439328,-500.0,0.00016892,2]
[399040138,1766087439337,-500.0,0.00016892,2]
[399040139,1766087439347,-500.0,0.00016892,2]
[399040140,1766087439356,-207.22538731,0.00016892,2]
[399040141,1766087439365,-500.0,0.00016892,2]
[399040142,1766087439374,-283.04330594,0.00016892,2]
[399040143,1766087439383,-411.88793493,0.00016892,2]
[399040144,1766087439392,-503.42551085,0.00016892,2]
[399040145,1766087439401,-537.86593135,0.00016892,2]
[399040146,1766087439411,-500.0,0.00016892,2]
[399040147,1766087439421,-2053.374,0.00016892,2]
[399040148,1766087439431,-178.918,0.00016892,2]
[399040149,1766087439440,-500.0,0.00016892,2]
[399040150,1766087439449,-440.77894479,0.00016893,2]
[399040151,1766087439459,-1100.95574637,0.00016893,2]
[399040152,1766087439467,-383.3499577,0.00016893,2]
[399040153,1766087439477,-180.97846882,0.000169,2]
[399040154,1766087439486,-242.76582238,0.000169,2]
[399040155,1766087439495,-223.80196628,0.000169,2]
[399040156,1766087439504,-551.17241592,0.000169,2]
[399040158,1766087439513,-301.0127028,0.000169,2]
[399040159,1766087439522,-1899.4697207,0.00016935,2]
[399040160,1766087439530,-203.77230882,0.00016971,2]
[399040161,1766087439539,-158.0457378,0.00016997,2]
[399040162,1766087439548,-13731.73925556,0.00016999,2]
[399040163,1766087439558,-300.0,0.00016999,2]
[399040164,1766087439567,-666.0,0.00016999,2]
[399040166,1766087439575,-760.78098489,0.00016999,2]
[399040168,1766087439584,-300.0,0.00016999,2]
[399040169,1766087439593,-218.99289129,0.00016999,2]
[399040170,1766087439602,-638.40898854,0.00016999,2]
[399040171,1766087439611,-422.04181191,0.00016999,2]
[399040172,1766087440023,-500.0,0.00016999,2]
[399040173,1766087440033,-500.0,0.00016999,2]
[399040174,1766087440045,-500.0,0.00016999,2]
[399040175,1766087440055,-500.0,0.00016999,2]
[399040176,1766087440064,-517.75584569,0.00016999,2]
[399040177,1766087440074,-158.824667,0.00017,2]
[399040178,1766087440084,-160730.80063652,0.00017,2]
[399040179,1766087440094,-1206983.81955491,0.00017,2]
[399040180,1766087440108,-31713.18570998,0.00017,2]
[399040181,1766087440703,-1.7e-07,0.00017,2]
[399040182,1766087440722,-109515.8277554,0.00017,2]
[399040183,1766087440806,-317.98890233,0.00017,2]
[399040184,1766087440818,-848.88,0.00017,2]
[399040185,1766087440829,-1700.0,0.00017,2]
[399040186,1766087440840,-254.75357107,0.00017,2]
[399040187,1766087442203,-4250.0,0.00017,2]
[399040188,1766087442216,-342.93822665,0.00017,2]
[399040190,1766087442365,-340.236,0.00017,2]
[399040204,1766087442584,-340.86111214,0.00017,2]
[399040205,1766087442596,-2160.70713976,0.00017,2]
[399040206,1766087442854,-1566.93041831,0.00017,2]
[399040207,1766087442870,-748.63230573,0.00017,2]
[399040208,1766087442909,-3392.04,0.00017,2]
[399040209,1766087442922,-4250.0,0.00017,2]
[399040210,1766087442934,-304.66513845,0.00017,2]
[399040230,1766087445983,-500.0,0.00016892,2]
[399040231,1766087445993,-196.02,0.0001699,3]
[399040232,1766087446003,-939.1173963,0.00017,2]
[399040233,1766087446041,-4241.6,0.00017,2]
[399040234,1766087446056,-5579.211,0.00017,2]
[399040235,1766087446092,-567.78466885,0.00017,2]
[399040236,1766087446691,-490.520002,0.00017,2]
[399040237,1766087446703,-341.32290013,0.00017,2]
[399040251,1766087490023,-500.0,0.00016782,2]
[399040252,1766087490044,-229.35153251,0.00016782,2]
[399040253,1766087490064,-414.27721888,0.00016792,2]
[399040254,1766087492678,-93.72338112,0.00016792,2]
[399040255,1766087492698,-260.18722664,0.00016804,2]
[399040256,1766087496870,-53.66989568,0.00016804,2]
[399040257,1766087496899,-300.0,0.00016817,2]
[399040258,1766087496922,-300.0,0.00016842,2]
[399040259,1766087496948,-300.0,0.00016842,2]
[399040260,1766087496971,-195.0,0.00016842,2]
[399040261,1766087496993,-300.0,0.0001689,2]
[399040262,1766087497017,-86.25010432,0.00016892,2]
[399040263,1766087498712,-250.51443477,0.00016892,2]
[399040264,1766087500236,-163.23546091,0.00016892,2]
[399040265,1766087500257,-52.74807635,0.00016892,2]
[399040266,1766087502257,-205.43089981,0.00016892,2]
[399040267,1766087504457,-241.82102384,0.00016892,2]
[399040268,1766087504477,-276.4988565,0.00016892,2]
[399040269,1766087520359,-164.83,0.00016892,2]
[399040270,1766087523298,-500.0,0.00016782,2]
[399040271,1766087525453,-222.30820943,0.00016782,2]
[399040272,1766087532112,-277.69179057,0.00016782,2]
[399040273,1766087532137,-459.1266799,0.00016782,2]
[399040274,1766087535670,548.14882892,0.00018,30]
[399040275,1766087535759,-40.8733201,0.00016782,2]
[399040276,1766087535783,-126.14784404,0.00016782,2]
[399040277,1766087537908,-500.0,0.00016683,2]
[399040278,1766087541147,-165.46809654,0.00016683,2]
[399040279,1766087543893,-185.97256245,0.00016683,2]
[399040280,1766087546580,-500.0,0.00016683,2]
[399040281,1766087548792,-300.0,0.00016683,2]
[399040282,1766087552059,-200.0,0.00016683,2]
[399040283,1766087555292,-476.33429396,0.00016683,2]
[399040284,1766087558612,-403.61461292,0.00016683,2]
[399040285,1766087560915,-420.05109312,0.00016683,2]
[399040286,1766087562742,-209.89781376,0.00016683,2]
[399040287,1766087564733,-370.05109312,0.00016683,2]
[399040288,1766087568129,-277.82363497,0.00016683,2]
[399040289,1766087569642,-212.27855127,0.00016683,2]
[399040290,1766087571272,-266.60280335,0.00016683,2]
[399040291,1766087574521,-200.0,0.00016683,2]
[399040292,1766087576738,-355.56660331,0.00016683,2]
[399040293,1766087579913,-191.52269656,0.00016682,2]
[399040294,1766087579938,-68.27411748,0.00016683,2]
[399040295,1766087581474,-177.83059334,0.00016683,2]
[399040296,1766087583705,-152.281238,0.00016682,2]
[399040297,1766087585976,-346.09135462,0.00016682,2]
[399040298,1766087587532,-336.12,0.00016682,2]
[399040299,1766087590925,-210.35864538,0.00016682,2]
[399040300,1766087592861,-155.148762,0.00016682,2]
[399040301,1766087592891,-227.76384495,0.00016683,2]
[399040302,1766087595651,-441.99528766,0.00016683,2]
[399040303,1766087600104,-500.0,0.00016683,2]
[399040304,1766087604762,-1640.46210539,0.00016683,2]
[399040305,1766087606430,-500.0,0.00016683,2]
[399040306,1766087609061,-500.0,0.00016683,2]
[399040307,1766087614216,-325.0,0.00016683,2]
[399040308,1766087615852,-194.25347522,0.00016683,2]
[399040309,1766087618108,-500.0,0.00016683,2]
[399040310,1766087620150,-323.11864538,0.00016683,2]
[399040311,1766087621739,-179.79667663,0.00016683,2]
[399040312,1766087628102,-452.14387181,0.00016683,2]
[399040313,1766087631430,-388.6272621,0.00016683,2]
[399040314,1766087633533,-326.97172114,0.00016683,2]
[399040315,1766087637040,-177.50363396,0.00016683,2]
[399040316,1766087638095,-188.77248995,0.00016683,2]
[399040317,1766087640175,-200.6751352,0.00016583,2]
[399040318,1766087640203,-230.46289876,0.00016683,2]
[399040319,1766087642246,-250.67322145,0.00016583,2]
[399040320,1766087645157,-152.35,0.00016583,2]
[399040321,1766087649076,-200.0,0.00016583,2]
[399040324,1766087651096,-133.08768884,0.00016583,2]
[399040325,1766087651118,-78.48490378,0.00016682,2]
[399040326,1766087653644,-219.2286201,0.00016633,2]
[399040327,1766087656307,-30.7713799,0.00016633,2]
[399040328,1766087656328,-269.2286201,0.00016682,2]
[399040329,1766087657846,-300.66941487,0.00016583,2]
[399040330,1766087661312,-274.29259379,0.00016583,2]
[399040331,1766087662892,-315.48056805,0.00016583,2]
[399040332,1766087665105,-216.43709006,0.00016583,2]
[399040334,1766087667239,-321.04495343,0.00016583,2]
[399040335,1766087672610,-500.0,0.00016583,2]
[399040336,1766087674822,-611.648148,0.00016583,2]
[399040337,1766087677024,-282.81163508,0.00016583,2]
[399040338,1766087679620,-210.0,0.00016583,2]
[399040339,1766087681135,-354.00231761,0.00016583,2]
[399040340,1766087684462,-242.68829309,0.00016583,2]
[399040341,1766087687342,-227.0,0.00016583,2]
[399040342,1766087689547,-154.22604213,0.00016583,2]
[399040343,1766087691117,-327.88135462,0.00016583,2]
[399040344,1766087694162,-161.89812619,0.00016583,2]
[399040345,1766087696382,-468.61825624,0.00016583,2]
[399040346,1766087699006,-190.00867295,0.00016583,2]
[399040347,1766087705435,-172.88629363,0.00016583,2]
[399040348,1766087707341,-188.72027808,0.00016583,2]
[399040349,1766087709143,-244.31269064,0.00016583,2]
[399040350,1766087710689,-551.45267612,0.00016583,2]
[399040351,1766087713543,-389.42995286,0.00016583,2]
[399040352,1766087717503,-195.0,0.00016583,2]
[399040353,1766087719582,-623.01832318,0.00016583,2]
[399040354,1766087721149,-221.61843486,0.00016583,2]
[399040355,1766087722667,-167.67192095,0.00016583,2]
[399040356,1766087724254,-109.51656935,0.00016583,2]
[399040357,1766087724280,-193.51028781,0.00016642,2]
[399040358,1766087728232,-106.48971219,0.00016642,2]
[399040359,1766087728256,-126.40360192,0.00016642,2]
[399040360,1766087732795,-167.05141096,0.00016642,2]
[399040361,1766087734395,-152.83,0.00016642,2]
[399040362,1766087737227,-383.97706952,0.00016642,2]
[399040363,1766087739987,-327.67549313,0.00016642,2]
[399040364,1766087741812,-42.06242447,0.00016642,2]
[399040365,1766087741834,-168.66535364,0.00016642,2]
[399040366,1766087743466,-131.33464636,0.00016642,2]
[399040367,1766087743489,-59.39225502,0.00016643,2]
[399040368,1766087745946,-181.13464512,0.00016643,2]
[399040369,1766087748038,-214.92890164,0.00016643,2]
[399040370,1766087750034,-403.57457059,0.00016643,2]
[399040371,1766087751296,-216.93305501,0.00016643,2]
[399040372,1766087752576,-265.92982465,0.00016643,2]
[399040373,1766087754782,-189.02492322,0.00016643,2]
[399040374,1766087756371,-179.98045227,0.00016643,2]
[399040375,1766087758500,-430.97892792,0.00016643,2]
[399040376,1766087764118,-216.80907043,0.00016642,2]
[399040377,1766087766316,-83.19092957,0.00016642,2]
[399040378,1766087766339,-297.94371555,0.00016643,2]
[399040379,1766087770760,-300.0,0.00016643,2]
[399040380,1766087775635,-160.09949067,0.00016642,2]
[399040381,1766087777177,-291.59009209,0.00016642,2]
[399040382,1766087781416,-259.28982065,0.00016642,2]
[399040383,1766087784718,-200.6751352,0.00016583,2]
[399040384,1766087784741,-211.80376312,0.00016642,2]
[399040385,1766087787446,-77.21683347,0.00016642,2]
[399040386,1766087787470,-80.05641105,0.00016643,2]
[399040387,1766087806294,-300.0,0.00016613,2]
[399040388,1766087808463,-307.40563422,0.00016613,2]
[399040389,1766087812313,-317.190708,0.00016613,2]
[399040390,1766087814014,-213.49946989,0.00016613,2]
[399040391,1766087815598,-195.0,0.00016613,2]
[399040392,1766087817682,-300.00000017,0.00016613,2]
[399040393,1766087819859,-308.00930881,0.00016613,2]
[399040394,1766087823132,-250.0,0.00016613,2]
[399040395,1766087824504,-354.78594011,0.00016613,2]
[399040396,1766087827113,-181.16415193,0.00016613,2]
[399040397,1766087828797,-239.94359756,0.00016613,2]
[399040398,1766087829095,177.59,0.00012963,2]
[399040399,1766087830405,-317.29061087,0.00016613,2]
[399040400,1766087832601,-175.83211768,0.00016613,2]
[399040401,1766087837934,-236.85212216,0.00016613,2]
[399040402,1766087842372,-184.73444802,0.00016613,2]
[399040403,1766087844170,-158.29504526,0.00016613,2]
[399040404,1766087846640,-188.06036247,0.00016613,2]
[399040405,1766087847794,-371.21201474,0.00016613,2]
[399040406,1766087850606,-350.03487197,0.00016613,2]
[399040407,1766087852278,-255.15986227,0.00016613,2]
[399040408,1766087854327,-226.11441705,0.00016613,2]
[399040409,1766087855884,-213.69001737,0.00016613,2]
[399040410,1766087858423,-398.64121908,0.00016613,2]
[399040411,1766087861889,-191.88503012,0.00016613,2]
[399040412,1766087866848,-300.0,0.00016613,2]
[399040413,1766087869837,-214.42464372,0.00016613,2]
[399040414,1766087870970,-392.54325046,0.00016613,2]
[399040415,1766087873085,-452.51228467,0.00016613,2]
[399040416,1766087874732,-268.98788201,0.00016613,2]
[399040417,1766087877472,-215.0738,0.00016613,2]
[399040418,1766087887893,-244.32582589,0.00016612,2]
[399040419,1766087895474,-55.67417411,0.00016612,2]
[399040420,1766087895495,-351.7454967,0.00016612,2]
[399040421,1766087907152,200.0,0.00016076,2]
[399040422,1766087927393,3812.45,0.00016062,2]
[399040423,1766087941254,150.0,0.00015996,2]
[399040424,1766087965221,200.0,0.00015898,2]
[399040425,1766087969264,-150.0,0.0001995,15]
[399040426,1766088046018,-300.0,0.00016582,2]
[399040427,1766088046041,-280.91738074,0.00016582,2]
[399040428,1766088047065,-199.48447556,0.00016582,2]
[399040429,1766088050400,-321.83214008,0.00016582,2]
[399040430,1766088053313,-252.41381597,0.00016582,2]
[399040431,1766088059939,-145.35218765,0.00016582,2]
[399040432,1766088059962,-39.998231,0.00016582,2]
[399040433,1766088062600,-250.0,0.00016582,2]
[399040434,1766088064414,-10.001769,0.00016582,2]
[399040435,1766088064437,-300.0,0.00016582,2]
[399040436,1766088064462,-137.68508369,0.00016583,2]
[399040437,1766088065859,-112.31491631,0.00016583,2]
[399040438,1766088065881,-168.42977547,0.00016583,2]
[399040439,1766088068709,-286.63595321,0.00016583,2]
[399040440,1766088074993,-173.52947433,0.00016583,2]
[399040441,1766088084708,-129.35410792,0.00016583,2]
[399040442,1766088084731,-115.62055877,0.00016583,2]
[399040443,1766088086010,-189.05239858,0.00016583,2]
[399040444,1766088088296,-317.86243822,0.00016583,2]
[399040445,1766088091882,-347.10463053,0.00016583,2]
[399040446,1766088103396,-1536.75,0.00016583,2]
[399040447,1766088106875,-184.06924501,0.00016583,2]
[399040448,1766088111411,-350.30336601,0.00016583,2]
[399040449,1766088115311,-232.29586124,0.00016583,2]
[399040450,1766088116413,-215.73316386,0.00016583,2]
[399040451,1766088117986,-300.50791959,0.00016583,2]
[399040452,1766088119554,-338.11606932,0.00016583,2]
[399040453,1766088121201,-300.0,0.00016583,2]
[399040454,1766088124545,-204.91082782,0.00016583,2]
[399040455,1766088126986,-321.51947135,0.00016583,2]
[399040456,1766088128268,-392.09730787,0.00016583,2]
[399040457,1766088132332,-900.67512233,0.00016583,2]
[399040458,1766088135542,-248.07545574,0.00016583,2]
[399040459,1766088138999,-154.83865845,0.00016583,2]
[399040460,1766088140101,-300.0,0.00016583,2]
[399040461,1766088141675,-315.56447045,0.00016583,2]
[399040462,1766088143800,-244.35470798,0.00016582,2]
[399040463,1766088147668,-194.85621072,0.00016582,2]
[399040464,1766088150179,-571.27416438,0.00016582,2]
[399040465,1766088151766,-421.96431454,0.00016582,2]
[399040466,1766088153890,-163.73095825,0.00016582,2]
[399040467,1766088193345,-1106.60534413,0.00016582,2]
[399040468,1766088193371,-347.50986155,0.00016583,2]
[399040469,1766088193394,-289.0,0.00016583,2]
[399040470,1766088193419,-195.0,0.00016598,2]
[399040471,1766088193442,-195.0,0.00016607,2]
[399040472,1766088193467,-867.0,0.00016611,2]
[399040473,1766088193491,-279.0,0.00016611,2]
[399040474,1766088193514,-13731.73925556,0.00016612,2]
[399040475,1766088193539,-531.0,0.00016612,2]
[399040476,1766088193562,-300.0,0.00016612,2]
[399040477,1766088193586,-300.0,0.00016612,2]
[399040478,1766088193609,-300.0,0.00016612,2]
[399040479,1766088193632,-35983.93021669,0.00016613,2]
[399040480,1766088193655,-3647.8251383,0.00016613,2]
[399040481,1766088193679,-151.0,0.00016613,2]
[399040482,1766088193702,-151.0,0.00016613,2]
[399040483,1766088193725,-151.0,0.00016613,2]
[399040484,1766088193748,-178.918,0.00016613,2]
[399040485,1766088193772,-557.1,0.00016613,2]
[399040486,1766088193796,-7673.37836419,0.00016617,2]
[399040487,1766088193821,-300.0,0.00016624,2]
[399040488,1766088193844,-304.98144564,0.00016624,2]
[399040489,1766088193869,-300.0,0.00016638,2]
[399040490,1766088193893,-41037.86151566,0.00016643,2]
[399040491,1766088193918,-163.35,0.00016671,3]
[399040492,1766088193945,-163.35,0.00016673,3]
[399040493,1766088193970,-500.0,0.00016682,2]
[399040494,1766088193995,-440.77894479,0.00016682,2]
[399040495,1766088194026,-500.0,0.00016682,2]
[399040496,1766088194051,-183.93452706,0.00016682,2]
[399040497,1766088194076,-270.41631183,0.00016682,2]
[399040498,1766088194100,-533.10990625,0.00016682,2]
[399040499,1766088194127,-500.0,0.00016682,2]
[399040500,1766088194152,-178.08714202,0.00016682,2]
[399040501,1766088194183,-541.94209941,0.00016682,2]
[399040502,1766088194208,-500.0,0.00016682,2]
[399040503,1766088194233,-528.30191845,0.00016682,2]
[399040504,1766088194258,-500.0,0.00016682,2]
[399040505,1766088194283,-500.0,0.00016682,2]
[399040506,1766088194316,-500.0,0.00016682,2]
[399040507,1766088194342,-500.0,0.00016682,2]
[399040508,1766088194368,-500.0,0.00016682,2]